Workbook

Sheet RAPOR SAYFASI
A1: KANAL KAÇAK TESTİ | K1: ACAR HAKAN BAYRAMOĞLU (0532) 546 9890
A5: DW142 - TABLO 2
B6: HAVA KAÇAĞI | J6: KAÇAK LİMİTLERİ
B7: 1 | J7: 2
B8: SINIFLANDIRMA (CLASSIFICATION) | J8: L/s.m²
B9: DÜŞÜK BASINÇ | F9: CLASS A | J9: 0.027 | N9: x | O9: ΔP2 | P9: 0.65
B10: ORTA BASINÇ | F10: CLASS B | J10: 0.009 | N10: x | O10: ΔP2 | P10: 0.65
B11: YÜKSEK BASINÇ | F11: CLASS C | J11: 0.003 | N11: x | O11: ΔP2 | P11: 0.65
B12: YÜKSEK BASINÇ | F12: CLASS D | J12: 0.001 | N12: x | O12: ΔP2 | P12: 0.65
B13: p değeri Pascal cinsinden diferansiyel basınç değeri olarak alınır.
A15: SIZDIRMAZLIK SINIFI | F15: : | G15: ='VERI GIRISI'!C12 -> C
A16: DW 142 TABLO 32 | D16: Önerilen maximum test basınçları (sızdırmazlık oranlarıyla)
B17: Statik Basınç Farkı (Pa) | F17: Maximum kanal kaçakları (L/s.m²)
F18: CLASS A | I18: CLASS B | L18: CLASS C | O18: CLASS D
B20: 200 | F20: =$J$9*POWER(B20,$P$9) -> 0.8453435851 | I20: =$J$10*POWER(B20,$P$10) -> 0.281781195 | L20: =$J$11*POWER(B20,$P$11) -> 0.09392706501 | O20: =$J$12*POWER(B20,$P$12) -> 0.03130902167
B21: 400 | F21: 1.326486268 | I21: 0.4421620894 | L21: 0.1473873631 | O21: 0.04912912104
B22: 600 | F22: 1.726482088 | I22: 0.5754940293 | L22: 0.1918313431 | O22: 0.06394378103
B23: 800 | F23: 2.081480064 | I23: 0.6938266881 | L23: 0.2312755627 | O23: 0.07709185423
B24: 1000 | F24: 2.406377533 | I24: 0.8021258443 | L24: 0.2673752814 | O24: 0.08912509381
B25: 1200 | F25: 2.709140783 | I25: 0.9030469276 | L25: 0.3010156425 | O25: 0.1003385475
A27: TEST SONUÇLARI | K27: TARİH : | N27: =IF('VERI GIRISI'!C3<0,"",T) -> 2018-04-28
A28: PROJE | D28: : | E28: =mekan -> TANGANIKA MEMORIAL HOSPITAL
A29: BÖLÜM / MEKAN | D29: : | E29: =+bolum -> KAT 2 / 10 YATAKLI ICU (L2.M.139)
A30: KANAL TEST KODU | D30: : | E30: =+kk -> L2-PASLANMAZ-065
A31: TEST CİHAZI | D31: : | E31: =+chz -> TTBJ-5
A32: KANAL YÜZEY ALANI | I32: ='VERI GIRISI'!C11 -> 100 | P32: m²
A33: KANAL DİFERANSİYEL BASINÇ DEĞERİ | I33: ='VERI GIRISI'!C13 -> 1000 | P33: Pa
A34: DİYAFRAM BASINÇ FARKI | I34: =+'VERI GIRISI'!C15 -> 100 | P34: Pa
A35: TOPLAM KANAL KAÇAĞI | E35: (Q=KATSAYI x √ ΔP2) | I35: =OR*SQRT(I34) -> 89.78 | P35: m³/h
I36: =I35*1000/3600 -> 24.93888889 | P36: L/s
A37: ÖLÇÜLEN KAÇAK MİKTARI | E37: (1 m² için) | I37: =I36/I32 -> 0.2493888889 | P37: L/s.m²
I38: =I37*3.6 -> 0.8978 | P38: m³/h.m²
A39: MÜSAADE EDİLEN MİKTAR CLASS A | G39: CLASS A | I39: =(POWER($I$33,P9))*J9 -> 2.406377533 | L39: =IF('VERI GIRISI'!C9=8.978,((($I$32*I39*3.6)*($I$32*I39*3.6))/('VERI GIRISI'!C9*'VERI GIRISI'!C9)),((($I$32*I39)*($I$32*I39))/('VERI GIRISI'!C9*'VERI GIRISI'!C9))) -> 9310.506931 | O39: =$I$32*I39*3.6 -> 866.2959119
A40: MÜSAADE EDİLEN MİKTAR CLASS A | G40: CLASS B | I40: =(POWER($I$33,P10))*J10 -> 0.8021258443 | L40: =IF('VERI GIRISI'!C9=8.978,((($I$32*I40*3.6)*($I$32*I40*3.6))/('VERI GIRISI'!C9*'VERI GIRISI'!C9)),((($I$32*I40)*($I$32*I40))/('VERI GIRISI'!C9*'VERI GIRISI'!C9))) -> 1034.50077 | O40: =$I$32*I40*3.6 -> 288.765304
A41: MÜSAADE EDİLEN MİKTAR CLASS A | G41: CLASS C | I41: =(POWER($I$33,P11))*J11 -> 0.2673752814 | L41: =IF('VERI GIRISI'!C9=8.978,((($I$32*I41*3.6)*($I$32*I41*3.6))/('VERI GIRISI'!C9*'VERI GIRISI'!C9)),((($I$32*I41)*($I$32*I41))/('VERI GIRISI'!C9*'VERI GIRISI'!C9))) -> 114.94453 | O41: =$I$32*I41*3.6 -> 96.25510132
A42: MÜSAADE EDİLEN MİKTAR CLASS A | G42: CLASS D | I42: =(POWER($I$33,P12))*J12 -> 0.08912509381 | L42: =IF('VERI GIRISI'!C9=8.978,((($I$32*I42*3.6)*($I$32*I42*3.6))/('VERI GIRISI'!C9*'VERI GIRISI'!C9)),((($I$32*I42)*($I$32*I42))/('VERI GIRISI'!C9*'VERI GIRISI'!C9))) -> 12.77161445 | O42: =$I$32*I42*3.6 -> 32.08503377
A44: TEST SONUCU AÇIKLAMASI
C45: CLASS A | D45: 'YA GÖRE | H45: =IF(J45="Kaçak Miktarı Uygundur","P","O") -> P | I45: : | J45: =IF(I39>$I$37,"Kaçak Miktarı Uygundur","Kaçak Miktarı Uygun Değildir") -> Kaçak Miktarı Uygundur
C46: CLASS B | D46: 'YE GÖRE | H46: =IF(J46="Kaçak Miktarı Uygundur","P","O") -> P | I46: : | J46: =IF(I40>$I$37,"Kaçak Miktarı Uygundur","Kaçak Miktarı Uygun Değildir") -> Kaçak Miktarı Uygundur
C47: CLASS C | D47: 'YE GÖRE | H47: =IF(J47="Kaçak Miktarı Uygundur","P","O") -> P | I47: : | J47: =IF(I41>$I$37,"Kaçak Miktarı Uygundur","Kaçak Miktarı Uygun Değildir") -> Kaçak Miktarı Uygundur
C48: CLASS D | D48: 'YE GÖRE | H48: =IF(J48="Kaçak Miktarı Uygundur","P","O") -> O | I48: : | J48: =IF(I42>$I$37,"Kaçak Miktarı Uygundur","Kaçak Miktarı Uygun Değildir") -> Kaçak Miktarı Uygun Değildir

Sheet VERI GIRISI
A1: VERİ GİRİŞİ
A3: TARİH | C3: 2018-04-28
A4: PROJE | C4: TANGANIKA MEMORIAL HOSPITAL
A5: BÖLÜM / MEKAN | C5: KAT 2 / 10 YATAKLI ICU (L2.M.139)
A6: KANAL TEST KODU | C6: L2-PASLANMAZ-065
A8: TEST CİHAZI | C8: TTBJ-5
A9: DİYAFRAM KATSAYISI | C9: 8.978
A11: KANAL METRAJI | C11: 100
A12: SIZDIRMAZLIK SINIFI | C12: C
A13: TEST BASINCI | C13: 1000
A14: MÜSAADE EDİLEN KAÇAK | B14: BURAYA VERİ GİRMEYİNİZ | C14: =IF(C12="A",'RAPOR SAYFASI'!L39,IF('VERI GIRISI'!C12="B",'RAPOR SAYFASI'!L40,IF('VERI GIRISI'!C12="C",'RAPOR SAYFASI'!L41,IF('VERI GIRISI'!C12="D",'RAPOR SAYFASI'!L42,0)))) -> 114.94453
A15: MANOMETRE KAÇAK DEĞERİ | C15: 100
A16: TEST SONUCU | C16: =IF(C12="D",'RAPOR SAYFASI'!J48,IF(C12="C",'RAPOR SAYFASI'!J47,IF(C12="B",'RAPOR SAYFASI'!J46,IF(C12="A",'RAPOR SAYFASI'!J45)))) -> Kaçak Miktarı Uygundur
